Cogmind - Beta 9 @@@ ROGUE MODE // 2019.10.28 @ 18:06:06 Player: MrPainting Result: Self-destructed Performance ------------- Evolutions (1) 500 Regions Visited (3) 600 Robots Destroyed (20) 100 Value Destroyed (492) 492 Prototype IDs (0) 0 Alien Tech Used (0) 0 Bonus (-52) -52 TOTAL SCORE: 1640 Bonus ------- Friendly Fire -52 Cogmind --------- Core Integrity 386/400 Matter 2/300 Energy 250/250 System Corruption 0% Temperature Cool (0) Location -9/Materials Parts ------- Power (1) Ion Engine Propulsion (4) Light Treads Light Treads Utility (2) Small Storage Unit Small Storage Unit Weapon (2) Grenade Launcher Grenade Launcher Inventory (8) Ion Engine Aluminum Leg Aluminum Leg Signal Interpreter Grenade Launcher Grenade Launcher Peak State ------------ Power Ion Engine Propulsion Compact Wheel Compact Wheel Utility Small Storage Unit Small Storage Unit Weapon EM Pulse Gun Assault Rifle Inventory Light Ion Engine Light Treads Light Treads Aluminum Leg Aluminum Leg Grenade Launcher [Rating: 7] Favorites ----------- Power Ion Engine Engine Ion Engine Propulsion Compact Wheel Treads Light Treads Leg Aluminum Leg Wheel Compact Wheel Utility Small Storage Unit Storage Small Storage Unit Weapon Assault Rifle Energy Gun EM Pulse Gun Ballistic Gun Assault Rifle Ballistic Cannon Light Cannon Launcher Grenade Launcher Build | -11 -10 -10 -9 ------- Run | Scr Mat Min Mat Slots Evolved 2 | . . . 2 Power . | . . . . Propulsion 2 | . . . 2 Utility . | . . . . Weapon . | . . . . Parts Attached 16 | 8 6 2 . Power 1 | 1 . . . Engine 1 | 1 . . . Core . | . . . . Reactor . | . . . . Propulsion 6 | 4 2 . . Treads 2 | . 2 . . Leg 2 | 2 . . . Wheel 2 | 2 . . . Hover . | . . . . Flight . | . . . . Utility 2 | 1 1 . . Device . | . . . . Storage 2 | 1 1 . . Processor . | . . . . Hackware . | . . . . Protection . | . . . . Artifact . | . . . . Weapon 7 | 2 3 2 . Energy Gun 1 | 1 . . . Energy Cannon . | . . . . Ballistic Gun 2 | 1 1 . . Ballistic Cannon 1 | . 1 . . Launcher 3 | . 1 2 . Special Weapon . | . . . . Impact Weapon . | . . . . Slashing Weapon . | . . . . Piercing Weapon . | . . . . Special Melee Weapon . | . . . . Unidentified Prototypes . | . . . . Parts Lost 3 | . 1 2 . Power . | . . . . Propulsion . | . . . . Utility . | . . . . Weapon 3 | . 1 2 . Highest Loss Streak 2 | . 1 2 . Average Slot Usage (%) 96 | . 97 97 77 Engine 13 | . 14 14 11 Treads 12 | . 7 28 22 Wheel 15 | . 20 . . Storage 26 | . 26 28 22 Energy Gun 6 | . 8 . . Ballistic Gun 10 | . 13 1 . Ballistic Cannon 4 | . 5 3 . Launcher 5 | . . 22 22 Naked Turns . | . . . . Heaviest Build 19 | 13 19 19 19 Greatest Support 40 | 32 40 40 40 Greatest Overweight (x) . | . . . . Average Overweight (x) . | . . . . Largest Inventory Capacity 8 | 6 8 8 8 Average Capacity 7 | 5 7 8 8 Most Carried 8 | 6 8 8 6 Average Carried 6 | 4 7 6 6 Final Capacity 8 | . . . 8 Final Carried 6 | . . . 6 Class Distribution -------------------- 100% | Mutant Dominant Class ---------------- Mutant | -10/Materials Mutant | -10/Mines Mutant | -9/Materials Resources | -11 -10 -10 -9 ----------- Run | Scr Mat Min Mat Matter Collected 445 | 286 156 3 . Remotely . | . . . . Salvage Created 500 | 109 361 30 . Parts 38 | 7 28 3 . Haulers Intercepted 1 | . 1 . . Recyclers Shooed . | . . . . Parts Field Recycled . | . . . . Retrieved Matter . | . . . . Parts Self-Destructed . | . . . . Prevented . | . . . . Kills | -11 -10 -10 -9 ------- Run | Scr Mat Min Mat Combat Hostiles Destroyed 11 | . 7 4 . Guns 4 | . 4 . . Cannons 3 | . 3 . . AOE 4 | . . 4 . Classes Destroyed 9 | 2 5 2 . Worker 2 | . 2 . . Builder 1 | . 1 . . Tunneler 1 | 1 . . . Hauler 1 | . 1 . . Recycler 1 | 1 . . . Operator 1 | . . 1 . Watcher 2 | . 2 . . Swarmer 2 | . . 2 . Grunt 9 | . 7 2 . Best Kill Streak 3 | 2 3 3 . Combat Bots Only 3 | . 2 3 . Max Kills in Single Turn 3 | 1 1 3 . Gunslinging . | . . . . Exploded 2 | . . 2 . Melee . | . . . . Uniques/NPCs Destroyed . | . . . . Combat | -11 -10 -10 -9 -------- Run | Scr Mat Min Mat Damage Taken 765 | . 474 241 50 Core 134 | . 88 32 14 Absorbed by Shields . | . . . . Core Remaining (%) 76 | 100 . 52 . Volleys Fired 63 | 2 49 12 . Largest 2 | 2 2 2 . Hottest 65 | 60 65 60 . Shots Fired 118 | 4 97 17 . Gun 71 | 4 66 1 . Cannon 37 | . 29 8 . Launcher 10 | . 2 8 . Special . | . . . . Kinetic 87 | 2 76 9 . Thermal . | . . . . Explosive 10 | . 2 8 . Electromagnetic 21 | 2 19 . . Robot Hit Streak 9 | 1 9 3 . Robot Miss Streak 2 | 1 2 2 . Penetration Max . | . . . . Secondary Targets . | . . . . Shots Hit Robots 69 | 1 60 8 . Core Hits 31 | 2 22 7 . Critical Hits 2 | . 1 1 . Critical Kills . | . . . . Critical Parts Destroyed 2 | . 1 1 . Melee Attacks . | . . . . Impact . | . . . . Slashing . | . . . . Piercing . | . . . . Sneak Attacks . | . . . . Combat Hostiles . | . . . . Follow-up Attacks . | . . . . Damage Inflicted 1548 | 30 940 578 . Guns 612 | 30 582 . . Cannons 499 | . 356 143 . Explosions 437 | . 2 435 . Melee . | . . . . Ramming . | . . . . Kinetic 900 | . 757 143 . Thermal 105 | . . 105 . Explosive 332 | . 2 330 . Electromagnetic 211 | 30 181 . . Impact . | . . . . Slashing . | . . . . Piercing . | . . . . Highest Corruption . | . . . . Average Corruption . | . . . . Corruption Purged . | . . . . Overload Shots . | . . . . Overflow Damage 63 | . 13 50 . Projectiles 21 | . 13 8 . Explosions 42 | . . 42 . Melee . | . . . . Knockbacks 5 | . 3 2 . Impact . | . . . . Kinetic 5 | . 3 2 . Secondary . | . . . . Self-Inflicted Damage 91 | . . 91 . Shots 4 | . . 4 . Rammed . | . . . . Targets Rammed . | . . . . Kicked . | . . . . Crushed . | . . . . Highest Temperature 54 | . 54 21 . Average Temperature 17 | . 18 12 . Received Heat Transfer 363 | . 267 81 15 Siege Activations . | . . . . Robots Corrupted . | . . . . Combat Hostiles . | . . . . Parts Fried . | . . . . Impact Corruptions . | . . . . Robots Melted . | . . . . Combat Hostiles . | . . . . Parts Melted . | . . . . Heat Transferred 150 | . . 150 . Parts Sabotaged . | . . . . Parts Stolen . | . . . . Parts Stripped . | . . . . Power Chain Reactions . | . . . . Missiles Intercepted . | . . . . Alert | -11 -10 -10 -9 ------- Run | Scr Mat Min Mat Peak Influence 198 | 10 198 190 89 Average Influence 71 | 1 76 105 86 Maximum Alert Level . | . . . . Low Security (%) 100 | . . . . Level 1 . | . . . . Level 2 . | . . . . Level 3 . | . . . . Level 4 . | . . . . Level 5 . | . . . . High Security . | . . . . Max Security . | . . . . Squads Dispatched 3 | . 1 . 2 Investigation 1 | . . . 1 Extermination . | . . . . Reinforcement 2 | . 1 . 1 Assault . | . . . . Garrison . | . . . . Intercept . | . . . . Construction Impeded . | . . . . Haulers Reinforced . | . . . . Stealth | -11 -10 -10 -9 --------- Run | Scr Mat Min Mat Distress Signals 1 | . 1 . . Communications Jammed . | . . . . Distress Signals . | . . . . Times Spotted 24 | . 12 7 5 Peak Tracking Total 4 | . 4 2 4 Tactical Retreats 4 | . 1 3 . Traps | -11 -10 -10 -9 ------- Run | Scr Mat Min Mat Traps Triggered 1 | . . . 1 Indirectly . | . . . . Trap Hack Attempts . | . . . . Triggered . | . . . . Disarmed . | . . . . Reprogrammed . | . . . . Reused . | . . . . Traps Extracted . | . . . . Installed . | . . . . Triggered . | . . . . Machines | -11 -10 -10 -9 ---------- Run | Scr Mat Min Mat Machines Disabled 6 | . 1 5 . Max in Single Turn 4 | . 1 4 . Machines Sabotaged . | . . . . Garrisons Compromised . | . . . . Overloaded Fab Kills . | . . . . Fab Network Shutdowns . | . . . . Hacking | -11 -10 -10 -9 --------- Run | Scr Mat Min Mat Machines Accessed 1 | . 1 . . Terminals 1 | . 1 . . Fabricators . | . . . . Repair Stations . | . . . . Recycling Units . | . . . . Scanalyzers . | . . . . Garrison Access . | . . . . Total Hacks 2 | . 2 . . Successful 2 | . 2 . . Failed . | . . . . Catastrophic . | . . . . Database Lockouts . | . . . . Manual 2 | . 2 . . Terminals 2 | . 2 . . Fabricators . | . . . . Repair Stations . | . . . . Recycling Units . | . . . . Scanalyzers . | . . . . Garrison Access . | . . . . Terminal Hacks . | . . . . Fabricator Hacks . | . . . . Repair Station Hacks . | . . . . Recycling Unit Hacks . | . . . . Scanalyzer . | . . . . Garrison Access Hacks . | . . . . Unauthorized Hacks 4 | . 4 . . Terminals 2 | . 2 . . Assimilate 1 | . 1 . . Botnet 1 | . 1 . . Fabricators . | . . . . Repair Stations . | . . . . Recycling Units . | . . . . Scanalyzers . | . . . . Garrison Access . | . . . . Data Cores Recovered . | . . . . Used . | . . . . Hacking Detections 1 | . 1 . . Full Trace Events . | . . . . Feedback Events . | . . . . Feedback Blocked . | . . . . Robot Schematics Acquired . | . . . . Robots Built . | . . . . Matter . | . . . . Time . | . . . . Total Robot Build Rating . | . . . . Part Schematics Acquired . | . . . . Parts Built . | . . . . Matter . | . . . . Time . | . . . . Total Part Build Rating . | . . . . Parts Repaired . | . . . . Time . | . . . . Parts Recycled . | . . . . Recycled Matter . | . . . . Retrieved Matter . | . . . . Retrieved Components . | . . . . Parts Scanalyzed . | . . . . Part Schematics Acquired . | . . . . Parts Damaged . | . . . . Bothacking | -11 -10 -10 -9 ------------ Run | Scr Mat Min Mat Used RIF Installer . | . . . . Robots Hacked . | . . . . Non-combat . | . . . . Combat . | . . . . Robot Hacks Applied . | . . . . Relay Couplers Released . | . . . . Robots Rewired . | . . . . Allies Hacked . | . . . . Hacks Repelled . | . . . . Allies | -11 -10 -10 -9 -------- Run | Scr Mat Min Mat Total Allies 1 | . 1 . . Largest Group 1 | . 1 1 . Highest-Rated Group 10 | . 10 10 . Highest-Rated Ally 10 | . 10 10 . Total Orders 2 | . 2 . . STAY 1 | . 1 . . FOLLOW 1 | . 1 . . Ally Attacks . | . . . . Total Damage . | . . . . Kills . | . . . . Allies Corrupted . | . . . . Allies Melted . | . . . . Intel | -11 -10 -10 -9 ------- Run | Scr Mat Min Mat Robot Analysis Total . | . . . . Derelict Logs Recovered . | . . . . Drone Launches . | . . . . Drone Recoveries . | . . . . Exploration | -11 -10 -10 -9 ------------- Run | Scr Mat Min Mat Turns Passed 875 | 110 577 139 49 Spaces Moved 497 | 73 329 68 27 Core 6 | 6 . . . Treads 159 | . 64 68 27 Legs 59 | 59 . . . Wheels 273 | 8 265 . . Hover . | . . . . Flight . | . . . . Fastest Speed 50 | 50 100 160 160 Average Speed 120 | 112 111 160 160 Slowest Speed 160 | 120 160 160 160 Overloaded Moves . | . . . . Propulsion Burnouts . | . . . . Robots Hopped . | . . . . Cave-ins Triggered . | . . . . Exploration Rate (%) 21 | 5 52 22 6 Regions Visited 3 Branch Regions 1 Pre-discovered Areas . | . . . . Known Exits Taken . | . . . . Unknown Exits Taken 3 | 1 1 1 . Scrap Searched . | . . . . Spaces Dug . | . . . . Terrain Destroyed 81 | . 16 65 . Melee . | . . . . Projectile . | . . . . AOE 81 | . 16 65 . Actions | -11 -10 -10 -9 --------- Run | Scr Mat Min Mat Total 651 | 96 442 81 32 Wait 49 | . 44 . 5 Move 494 | 72 328 67 27 Hop . | . . . . Pick Up 22 | 13 9 . . Fast Attach 1 | . 1 . . Attach 9 | 6 1 2 . Detach . | . . . . Swap 6 | 2 4 . . Drop 7 | 1 6 . . Fire 63 | 2 49 12 . Melee . | . . . . Ram . | . . . . Kick . | . . . . Crush . | . . . . Escape Stasis . | . . . . Rewire . | . . . . Trap . | . . . . Miscellaneous . | . . . . Route ------- -11/Scrapyard -10/Materials -10/Mines -9/Materials History --------- Turn | Location | Event 7 | -11/Scrapyard | Discovered new exit (range 16) 111 | -11/Scrapyard | Entered Materials 316 | -10/Materials | Build established: Mutant 669 | -10/Materials | Discovered new exit (range 13) 688 | -10/Materials | Entered Mines 688 | -10/Mines | Accompanied by 1 ally 817 | -10/Mines | Discovered new exit (range 4) 827 | -10/Mines | Entered Materials 827 | -9/Materials | Evolved 2 slots: Propulsion x2 876 | -9/Materials | Self-destructed Last Messages --------------- 00776_ Technician 1a destroyed. 00776_ Plasma Injector explodes. 00776_ Destroyed Lgt. Ion Engine. 00776_ Destroyed Lgt. Assault Rifle. 00776_ S-10 Pest destroyed. 00776_ Plasma Injector explodes. 00776_ Destroyed Flight Unit. 00817_ EXIT=FOUND PARAMETERS=PROPULSION_2 LOCATION=UNKNOWN GOAL=ESCAPE 00835_ O-16 Technician: "IFF HANDSHAKE FAILED. SECURING TERMINAL." 00835_ O-16 Technician uses terminal to summon reinforcements. 00835_ ALERT: Hostiles spotted, dispatching reinforcements to Terminal M008. 00835_ O-16 Technician locks terminal. 00864_ Triggered Alarm Trap. 00864_ An alarm sounds. 00864_ ALERT: Alarm triggered, dispatching investigation squad. 00870_ K-01 Serf collects debris. Map ----- +----------------------------------------------------+ | ?????????????????????????????????????????????????? | | ?????????????????????????????????????????????????? | | ?????????????????????????????????????????????????? | | ?????????????????????????????????????????????????? | | ?????????????????????????????????????????????????? | | ?????????????????????????????????????????????????? | | ?????????????????????????????????????????????????? | | ?????????????????????????????????????????????????? | | ?????????????????????????????????????????????????? | | ?????????????????????????????????????????????????? | | ????????????????????????? ?????????????????????? | | ???????????????????????? ????????????????????? | | ??????????????????????? ????????????????????? | | ???????????????????????? ????????????????????? | | ???????????????????????? ????????????????????? | | ????????????????????????# #?????????????######## | | ????????????????????????# u #?????????????# # | | ????????????????????????#Yg #?????????????# T # | | ????????????????????????# #?????????????# # | | ????????????????????????# g#?????????????# # | | ????????????????????????# r#?????????????# # | | ???????????????????????## ##?????????????? ? | | ???????????????????????# l #################/### | | ???????????????????????#k | | ???????????????????????+ T | | ???????????????????????# @ | | ???????????????????????# ###+#############+### | | ???????????????????????####### ????????? ? | | ?????????????????????????????# ??????# | | ?????????????????????????????# [????# """ | | ?????????????????????????????# #???# """ | | ?????????????????????????????# #???# """ | | ?????????????????????????????# """" #???# | | ?????????????????????????????# """" #???####### | | ?????????????????????????????# """" #?????????? | | ??????????????????????????????#####???##?????????? | | | | | | | | | | | | | | | | | | | | | | | | | | | | | +----------------------------------------------------+ Best States ------------- Heat Dissipation 28 Energy Generation 10 Energy Capacity 250 Matter Stores 300 Matter Capacity 300 Sight Range 16 Terrain Scan Density 10 Evasion (%) 40 Recoil Reduction 2 Item Schematics ----------------- None Robot Schematics ------------------ None Fabricated ------------ Nothing Alien Tech Used ----------------- None Achievements -------------- None Challenges ------------ None Game ------ Seed ArchitectChipVibroblade Manual? 0 Play Time 00:17:42 Cumulative 42.8 hours Start 2019.10.28 @ 15:46:23 End 2019.10.28 @ 18:06:06 Sessions 1 Manual Loads 0 Difficulty Rogue Special Mode None Game No. 70 Rogue 70 Adventurer 0 Explorer 0 Win Type - Total 0 Types 0/0/0/0/0/0/0 Lore% 27 Gallery% 33 Achievement% 26 Wizard Run 0 Options --------- ASCII 0 Keyboard 0 Movement Mouse Keybinds 0 Fullscreen 1 Font 18/SmallcapsGlow Map View 76x50 Tactical HUD 1 Map Filters NONE Filters NONE Steam 1 RUN: 8411a066-a1b1-4129-ac3f-d482fdfb4d42